[Event "Grand Prix Romania 1st Stage 2024"]
[Site "Bucuresti"]
[Date "2024.03.24"]
[Round "8.3"]
[White "Mikhalevski, Victor"]
[Black "Sarana, Alexey"]
[Result "1-0"]
[ECO "D73"]
[WhiteElo "2514"]
[BlackElo "2699"]
[Annotator "TA"]
[PlyCount "119"]
[EventDate "2024.03.20"]
[EventType "swiss"]
[EventCountry "ROU"]
[SourceTitle "playchess.com"]
[Source "ChessBase"]
[SourceQuality "1"]
[TimeControl "900+5"]

{[%evp 10,119,25,0,11,0,0,-5,-8,-1,-5,0,-1,0,-3,-4,-1,0,0,-12,-13,-1,-2,-8,0,0,0,8,23,23,79,87,87,70,83,85,100,50,87,53,131,97,101,112,107,109,93,105,112,96,113,98,104,89,166,78,162,137,129,141,181,180,258,263,343,240,369,371,363,374,549,549,556,547,544,514,543,536,568,568,700,700,700,700,700,579,700,700,693,689,686,652,631,631,1428,1114,12845,12850,29975,939,29979,29980,29980,29978,29977,29978,29980,29979,29983,29984,29987,29978]} 1. Nf3 {[%emt 0:00:03]} d5 {[%emt 0:00:01]} 2. g3 {[%emt 0:00:01]} g6 {[%emt 0:00:01]} 3. Bg2 {[%emt 0:00:02]} Bg7 {[%emt 0:00:01]} 4. d4 {[%emt 0:00:02]} c6 {[%emt 0:00:02]} 5. O-O {[%emt 0:00:05]} Nf6 {[%emt 0:00:01][%cal Bg8f6,Bf6e4,Be4d6,Bd6f5][%mdl 32] [#]} 6. c4 $1 {[%emt 0:00:03]} dxc4 {[%emt 0:00:02]} (6... O-O 7. cxd5) 7. a4 {[%emt 0:00:54]} Ne4 {[%emt 0:00:02]} 8. Nc3 {[%emt 0:00:19]} Nd6 {[%emt 0:00:02] The position is equal.} 9. e4 {[%emt 0:00:08]} Bg4 {[%emt 0:00:36]} 10. Be3 {[%emt 0:00:18]} Qc8 {[%emt 0:00:29]} 11. Qe2 {[%emt 0:00:53]} O-O {[%emt 0:00:04]} 12. e5 {[%emt 0:00:12]} Nf5 {[%emt 0:00:09][%cal Oc6c5]} 13. Qxc4 {[%emt 0:00:04]} Na6 {[%emt 0:01:49][%cal Oc6c5]} 14. Ng5 {[%emt 0:02:13]} h6 {[%emt 0:00:51][%cal Of5e3] aiming for ...Nxe3!} 15. Nge4 {[%emt 0:00:29]} Nxe3 {[%emt 0:00:40]} 16. fxe3 {[%emt 0:00:02]} Qe6 {[%emt 0:00:24]} 17. Qxe6 {[%emt 0:00:35]} Bxe6 {[%emt 0:00:02]} 18. a5 {[%emt 0:00:13]} Rad8 {[%emt 0:00:46]} 19. Na4 {[%emt 0:00:27]} Nb4 {[%emt 0:00:37]} (19... Bf5 $11) 20. Ra3 $16 {[%emt 0:00:34]} Nc2 {[%emt 0:05:55]} 21. Rc3 {[%emt 0:00:05][%cal Oa4c5] Hoping for Nac5!} Nxd4 {[%emt 0:00:04]} 22. exd4 {[%emt 0:00:13]} Rxd4 {[%emt 0:00:01]} 23. Nac5 {[%emt 0:02:15]} (23. Nec5 $16 {Nxe6 would now be deadly.} Bxe5 24. Re3 Rxa4 25. Rxe5 (25. Nxa4 Bd4 $16) 25... Rxa5 26. Rc1) 23... Bd5 {[%emt 0:00:21]} 24. Re3 {[%emt 0:01:02]} Bc4 {[%emt 0:01:42]} (24... b6 $14 25. axb6 axb6) 25. Rc1 {[%emt 0:01:53]} b6 {[%emt 0:01:11]} 26. axb6 {[%emt 0:00:07]} axb6 {[%emt 0:00:01] [#]} 27. Nb3 {[%emt 0:00:08]} Bxb3 {[%emt 0:00:11]} 28. Rxb3 {[%emt 0:00:01]} Bxe5 {[%emt 0:00:03]} 29. Rxc6 {[%emt 0:00:12][%cal Og1f1]} (29. Rxb6 Rxe4 30. Bxe4 Bd4+ 31. Kf1 Bxb6 32. Rxc6 Rb8 $17) 29... Rd1+ {[%emt 0:00:08]} 30. Bf1 {[%emt 0:00:43][%cal Og1g2]} Rfd8 {[%emt 0:00:18]} 31. Rc2 {[%emt 0:00:36]} (31. Rbxb6 Bd4+ 32. Kg2 Bxb6 33. Rxb6 Re1 $15) 31... Re1 {[%emt 0:00:10]} (31... f5 $16 {was necessary.} 32. Rb5 Bh8) 32. Re2 {[%emt 0:00:12]} (32. Nd2 $18 {is more deadly.}) 32... Ra1 {[%emt 0:00:15]} (32... Rxe2 $16 {is a better defense.} 33. Bxe2 f5) 33. Nf2 {[%emt 0:00:17]} (33. Rxb6 $2 Bd4+ 34. Nf2 Bxb6 $19) 33... Bd4 {[%emt 0:00:12]} 34. Kg2 {[%emt 0:00:15]} (34. Rxe7 Bc5 35. Rb7 Rdd1 $15) 34... e5 {[%emt 0:00:09]} 35. Ng4 {[%emt 0:00:05][%csl LRe5,LRh6]} Bc5 {[%emt 0:00:33]} (35... e4 $142 36. Rxe4 (36. Nxh6+ Kg7 $16) 36... f5 37. Bc4+ (37. Nxh6+ Kg7 $14) 37... Kh8) 36. Nxe5 $18 {[%emt 0:00:15]} (36. Nxh6+ Kg7 $11) 36... Kg7 {[%emt 0:00:02]} 37. Rd3 {[%emt 0:00:11]} Rda8 {[%emt 0:00:05]} (37... Rd6 $142 38. Rf2 Ra7) 38. Rd7 {[%emt 0:00:03]} R8a7 {[%emt 0:00:01]} 39. Red2 {[%emt 0:00:12]} Kf6 {[%emt 0:00:09]} (39... Be3 $142 40. R2d6 (40. Rxa7 Rxa7 41. Rd3 Bc5 $18) 40... Rxd7 41. Rxd7 Kf6 42. Ng4+ (42. Rxf7+ Kxe5 43. Re7+ Kd4 $14) (42. Nxf7 Rb1 $18) 42... Ke6) 40. Rxa7 {[%emt 0:00:02]} Rxa7 {[%emt 0:00:01]} 41. Nd7+ {[%emt 0:00:01]} Ke7 {[%emt 0:00:03]} 42. Nxc5 {[%emt 0:00:02]} bxc5 {[%emt 0:00:01][%mdl 4096] Endgame. KRB-KR} 43. Bc4 {[%emt 0:00:02]} Ra1 {[%emt 0:00:02]} 44. Re2+ {[%emt 0:00:04]} Kf8 {[%emt 0:00:01]} 45. b3 {[%emt 0:00:02]} Ra7 {[%emt 0:00:04]} 46. h4 {[%emt 0:00:03][%cal Bh2h4,Bh4h5][%mdl 32]} Rc7 {[%emt 0:00:01]} 47. Re5 {[%emt 0:00:01]} Kg7 {[%emt 0:00:01]} 48. h5 {[%emt 0:00:04]} Kf6 {[%emt 0:00:01]} 49. Rd5 {[%emt 0:00:01]} Ke7 {[%emt 0:00:02]} 50. Kf3 {[%emt 0:00:02]} Rc6 {[%emt 0:00:01]} 51. Ke4 {[%emt 0:00:04]} Kf6 {[%emt 0:00:12]} 52. Rd7 {[%emt 0:00:04]} gxh5 {[%emt 0:00:03]} 53. Rxf7+ {[%emt 0:00:03]} Kg6 {[%emt 0:00:01]} 54. Rf8 {[%emt 0:00:04]} (54. Ke5 $142 Rb6 55. Re7 h4 56. Bd3+ (56. gxh4 Kh5 $18) 56... Kh5 57. Kf5 Rf6+ 58. Kxf6 Kg4 59. gxh4) 54... h4 {[%emt 0:00:10]} 55. gxh4 {[%emt 0:00:05] White mates.} Rd6 {[%emt 0:00:04]} 56. Rf4 {[%emt 0:00:08]} Rd1 {[%emt 0:00:07]} 57. Ke5 {[%emt 0:00:03]} h5 {[%emt 0:00:01]} 58. Bf7+ {[%emt 0:00:05]} Kh6 {[%emt 0:00:02]} 59. Bd5 {[%emt 0:00:04]} Rd3 {[%emt 0:00:01]} 60. Kd6 {[%emt 0:00:03] Weighted Error Value: White=0.10 (very precise) /Black=0.28 (precise) .  Mistake:       	White=2     	Black=7      Inaccurate:     	White=2     	Black=2      OK:         	White=21    	Black=14} 1-0

[Event "Grand Prix Romania 1st Stage 2024"]
[Site "Bucuresti"]
[Date "2024.03.24"]
[Round "8.4"]
[White "Deac, Bogdan-Daniel"]
[Black "Lupulescu, Constantin"]
[Result "1-0"]
[ECO "D02"]
[WhiteElo "2690"]
[BlackElo "2579"]
[Annotator "TA"]
[PlyCount "95"]
[EventDate "2024.03.20"]
[EventType "swiss"]
[EventCountry "ROU"]
[SourceTitle "playchess.com"]
[Source "ChessBase"]
[SourceQuality "1"]
[TimeControl "900+5"]

{[%evp 22,95,-6,-10,-25,-29,-15,-13,23,27,23,16,22,0,0,0,0,0,0,0,0,0,14,0,0,0,9,3,8,0,0,0,16,9,12,0,0,0,0,0,30,23,29,29,61,31,33,0,61,20,27,0,0,0,0,0,68,0,35,15,145,141,182,88,87,30,422,402,654,660,29978,0,189,0,29978,29979]} 1. Nf3 {[%emt 0:00:02]} d5 {[%emt 0:00:01]} 2. g3 {[%emt 0:00:02]} Nd7 {[%emt 0:00:01]} 3. d4 {[%emt 0:00:01]} Nb6 {[%emt 0:00:03]} 4. Nc3 {[%emt 0:00:03]} Nf6 {[%emt 0:00:34]} 5. Bg2 {[%emt 0:00:08]} h6 {[%emt 0:00:06]} 6. Nd2 $146 {[%emt 0:00:40] D02: 1 d4 d5 2 Nf3 sidelines, including 2...Nf6 3 g3 and 2...Nf6 3 Bf4.} ({Predecessor:} 6. a4 a5 7. Bf4 c6 8. Ne5 Bf5 9. O-O e6 10. Re1 Be7 11. e4 Bh7 12. exd5 Nbxd5 13. Nxd5 cxd5 {0-1 Van Foreest,J (2702)-Riazantsev,A (2634) Titled Tuesday intern op 01st Mar Late blitz 2022 (6)}) 6... Bg4 {[%emt 0:01:11]} 7. h3 {[%emt 0:00:31]} Bh5 {[%emt 0:00:01]} 8. g4 {[%emt 0:00:03]} Bg6 {[%emt 0:00:01]} 9. e4 {[%emt 0:00:02]} e6 {[%emt 0:01:19]} 10. exd5 {[%emt 0:00:01]} Nbxd5 {[%emt 0:00:46]} 11. Nxd5 {[%emt 0:00:21]} Nxd5 {[%emt 0:00:56]} 12. c3 {[%emt 0:04:12]} c6 {[%emt 0:00:42]} 13. Nc4 {[%emt 0:01:00]} Bd6 {[%emt 0:00:38]} 14. Qe2 {[%emt 0:01:56]} Nf4 {[%emt 0:03:10]} 15. Nxd6+ {[%emt 0:01:17]} Qxd6 {[%emt 0:00:01]} 16. Bxf4 {[%emt 0:00:02]} Qxf4 {[%emt 0:00:01]} 17. Qe3 {[%emt 0:00:03]} Qxe3+ {[%emt 0:01:37]} 18. fxe3 {[%emt 0:00:02]} Ke7 {[%emt 0:00:18]} 19. Kf2 {[%emt 0:01:33]} f6 {[%emt 0:00:44]} 20. Bf3 {[%emt 0:00:27]} e5 {[%emt 0:00:51]} 21. h4 {[%emt 0:01:02]} Rad8 {[%emt 0:00:32]} 22. Rad1 {[%emt 0:00:52]} Rd6 {[%emt 0:00:09]} 23. e4 {[%emt 0:00:41]} Rhd8 {[%emt 0:00:41]} 24. Ke3 {[%emt 0:00:02]} Bf7 {[%emt 0:00:13]} 25. b3 {[%emt 0:00:21]} a5 {[%emt 0:00:09]} 26. g5 {[%emt 0:01:38]} hxg5 {[%emt 0:02:04]} 27. hxg5 {[%emt 0:00:02]} fxg5 {[%emt 0:00:01]} 28. Rhg1 {[%emt 0:00:05]} Rg6 {[%emt 0:00:14]} 29. dxe5 {[%emt 0:00:12]} Rxd1 {[%emt 0:00:02]} 30. Bxd1 {[%emt 0:00:01]} Rh6 {[%emt 0:00:13]} 31. Rxg5 {[%emt 0:00:01]} g6 {[%emt 0:00:01]} 32. Rg2 {[%emt 0:00:11]} Rh3+ {[%emt 0:00:02]} 33. Bf3 {[%emt 0:00:05]} Rh1 {[%emt 0:00:09]} 34. Rd2 {[%emt 0:00:08]} Re1+ {[%emt 0:00:03]} (34... Rh3 $11) 35. Kf4 {[%emt 0:00:03]} Rf1 {[%emt 0:00:01]} 36. Kg3 {[%emt 0:00:03]} Rg1+ {[%emt 0:00:01]} 37. Kf2 {[%emt 0:00:08]} Ra1 {[%emt 0:00:02]} (37... Rg5 38. Ke3 $17) 38. Ke3 {[%emt 0:00:03]} (38. c4 $11) 38... Re1+ $14 {[%emt 0:00:03]} 39. Kf4 {[%emt 0:00:06]} Rf1 {[%emt 0:00:02]} 40. Rh2 {[%emt 0:00:07]} Ra1 {[%emt 0:00:14]} (40... g5+ $11 41. Ke3 (41. Kxg5 $2 {loses.} Rxf3 42. Rh8 Ke6 $19) 41... Rc1) 41. c4 {[%emt 0:00:05]} Rc1 {[%emt 0:00:03]} 42. Bg4 {[%emt 0:00:03]} (42. Rh7 $18 {is more deadly. Threatens to win with Bg4.} Rf1 43. Ke3) 42... Rf1+ $16 {[%emt 0:00:03] [#]} 43. Kg5 {[%emt 0:00:02]} ({Better is} 43. Ke3 $1 $16 {Rh7 would now be deadly.} Be6 44. Bf3) 43... Rg1 $2 {[%emt 0:00:11][%mdl 8192]} (43... Be6 $1 $11 {and Black is okay.}) 44. Rh7 $18 {[%emt 0:00:07]} Kf8 {[%emt 0:00:01]} (44... Ke8 $142 45. Kf4 Rf1+ 46. Ke3 Re1+ 47. Kd3 Kf8) 45. Kf6 $18 {[%emt 0:00:06]} Rf1+ {[%emt 0:00:00]} 46. Kg5 $2 {[%emt 0:00:08]} (46. Bf5 $1 {mates} gxf5 47. exf5 (47. Rxf7+ Ke8 $18) 47... Be6 48. Kxe6 a4 49. Rxb7 (49. bxa4 b5 $18) 49... axb3 50. Kf6 Ke8 51. e6 (51. axb3 Rh1 $18)) 46... Rg1 $1 $18 {[%emt 0:00:28]} 47. Kf6 $2 {[%emt 0:00:03]} (47. Kf4 $18 Kg8 48. Rh2) 47... Rf1+ $1 {[%emt 0:00:00]} 48. Bf5 $1 {[%emt 0:00:01]} 1-0

[Event "Grand Prix Romania 1st Stage 2024"]
[Site "Bucuresti"]
[Date "2024.03.24"]
[Round "8.5"]
[White "Rozen, Eytan"]
[Black "Mamedov, Rauf"]
[Result "1/2-1/2"]
[ECO "D02"]
[WhiteElo "2487"]
[BlackElo "2651"]
[Annotator "TA"]
[PlyCount "53"]
[EventDate "2024.03.20"]
[EventType "swiss"]
[EventCountry "ROU"]
[SourceTitle "playchess.com"]
[Source "ChessBase"]
[SourceQuality "1"]
[TimeControl "900+5"]

{[%evp 9,53,0,0,0,-8,-11,6,4,14,14,40,38,32,9,66,15,21,19,26,0,6,3,27,36,44,29,23,0,0,0,0,0,0,0,0,0,0,0,0,0,0,0,0,0,0,0]} 1. d4 {[%emt 0:00:02]} d5 {[%emt 0:00:01]} 2. Nf3 {[%emt 0:00:03]} Nf6 {[%emt 0:15:14]} 3. c3 {[%emt 0:00:03]} Bf5 {[%emt 0:00:00]} 4. Qb3 {[%emt 0:00:07]} Qc8 {[%emt 0:00:00]} 5. c4 {[%emt 0:00:03]} dxc4 {[%emt 0:00:00]} 6. Qxc4 {[%emt 0:00:01]} e6 {[%emt 0:00:00]} 7. Nc3 {[%emt 0:00:09]} Be7 {[%emt 0:00:00]} 8. g3 {[%emt 0:00:35]} O-O {[%emt 0:00:00]} 9. Bg2 {[%emt 0:00:01]} h6 {[%emt 0:00:00]} 10. O-O {[%emt 0:00:06]} Nbd7 {[%emt 0:00:00]} 11. Bf4 {[%emt 0:00:06]} c5 {[%emt 0:00:00]} ({Besser ist} 11... c6 $11) 12. dxc5 {[%emt 0:00:27] Weiß steht aktiver.} (12. Rac1 $14) 12... Qxc5 {[%emt 0:00:00]} 13. Qxc5 {[%emt 0:00:05]} Nxc5 {[%emt 0:00:00]} 14. Rfd1 {[%emt 0:00:39]} Rac8 {[%emt 0:00:00]} 15. Nb5 {[%emt 0:00:24]} a6 {[%emt 0:00:00]} 16. Nd6 {[%emt 0:00:01]} Bxd6 {[%emt 0:00:00]} 17. Bxd6 {[%emt 0:00:01]} Rfd8 {[%emt 0:00:00]} 18. Bxc5 {[%emt 0:01:26] Ein starkes Läuferpaar.} Rxd1+ {[%emt 0:00:00] Die Stellung ist ausgeglichen.} 19. Rxd1 {[%emt 0:00:01]} Rxc5 {[%emt 0:00:00]} 20. Nd4 {[%emt 0:00:01] Es drohte Rc2} Be4 {[%emt 0:00:00]} 21. Bxe4 {[%emt 0:00:06]} Nxe4 $11 {[%emt 0:00:00][%mdl 4096] Endspiel. KRN-KRN} 22. f3 {[%emt 0:00:01]} Nf6 {[%emt 0:00:00]} 23. Kf2 {[%emt 0:00:28]} Kf8 {[%emt 0:00:00]} 24. Nb3 {[%emt 0:00:26]} Rc7 {[%emt 0:00:00]} 25. e4 {[%emt 0:00:38]} Ke7 {[%emt 0:00:00]} 26. Ke3 {[%emt 0:00:01]} Nd7 {[%emt 0:00:00]} 27. Rc1 {[%emt 0:00:11] Gewichteter Fehlerwert: Weiß=0.10 (sehr präzise) /Schwarz=0.09 (makellos) .  Fehler:       	Weiß=1     	Schwarz=1     Ungenau:       	Weiß=1     	Schwarz=1     OK:         	Weiß=5     	Schwarz=12} 1/2-1/2

[Event "Grand Prix Romania 1st Stage 2024"]
[Site "Bucuresti"]
[Date "2024.03.24"]
[Round "8.6"]
[White "Korobov, Anton"]
[Black "Secheres, Adrian-Simion"]
[Result "1-0"]
[ECO "E75"]
[WhiteElo "2662"]
[BlackElo "2371"]
[Annotator "TA"]
[PlyCount "69"]
[EventDate "2024.03.20"]
[EventType "swiss"]
[EventCountry "ROU"]
[SourceTitle "playchess.com"]
[Source "ChessBase"]
[SourceQuality "1"]
[TimeControl "900+5"]

{[%evp 18,69,6,0,51,50,74,65,69,31,41,56,62,54,111,85,90,84,85,73,83,41,28,29,147,40,45,38,29,48,54,61,57,66,61,50,69,63,54,57,130,0,0,0,104,0,0,0,430,441,493,471,29993,29994]} 1. c4 {[%emt 0:00:02]} g6 {[%emt 0:00:07]} 2. d4 {[%emt 0:00:09]} Nf6 {[%emt 0:00:07]} 3. Nc3 {[%emt 0:00:02]} Bg7 {[%emt 0:00:03]} 4. e4 {[%emt 0:00:02]} d6 {[%emt 0:00:03]} 5. Be2 {[%emt 0:00:02]} O-O {[%emt 0:00:08]} 6. Bg5 {[%emt 0:00:02]} c5 {[%emt 0:00:36]} 7. d5 {[%emt 0:00:02]} h6 {[%emt 0:00:03]} 8. Be3 {[%emt 0:00:07]} e6 {[%emt 0:00:10]} 9. Nf3 {[%emt 0:00:06]} exd5 {[%emt 0:00:13]} 10. cxd5 {[%emt 0:00:02]} Re8 {[%emt 0:01:12]} (10... b5 $1 $11) 11. Nd2 $14 {[%emt 0:00:04]} a6 {[%emt 0:00:11]} 12. a4 {[%emt 0:00:04]} Nbd7 {[%emt 0:00:17] White is slightly better.} 13. h3 {[%emt 0:00:18]} Rb8 {[%emt 0:01:18]} 14. O-O {[%emt 0:00:10]} Qe7 {[%emt 0:02:35]} 15. Qc2 {[%emt 0:00:13]} Nh5 {[%emt 0:00:43]} ({Better is} 15... Nh7 $14) 16. Bxh5 {[%emt 0:01:05]} gxh5 {[%emt 0:00:02]} 17. a5 {[%emt 0:00:04]} b5 {[%emt 0:00:24][%cal Of7f5]} 18. axb6 {[%emt 0:00:03]} Rxb6 {[%emt 0:00:02]} 19. Nc4 {[%emt 0:02:51]} Rb4 {[%emt 0:00:07]} 20. Na5 {[%emt 0:00:02] Black must now prevent Nc6. Excellent horsemanship.} Ne5 {[%emt 0:01:24]} (20... Bxc3 $11 {remains equal.} 21. Qxc3 (21. bxc3 Rxe4 22. Bxh6 Qf6 $11) 21... Rxe4) 21. Nc6 {[%emt 0:00:02]} (21. f4 $16 Nc4 22. Nc6) 21... Qh4 {[%emt 0:00:43][%cal Oc8h3]} 22. f3 {[%emt 0:02:07][%cal Bf2f3,Bf3f4][%mdl 32]} (22. Nxb4 Nf3+ 23. gxf3 Bxc3 $11) 22... Nxc6 {[%emt 0:00:25]} 23. dxc6 {[%emt 0:00:02]} Be5 {[%emt 0:00:57] And now ...Qg3 would win.} 24. f4 {[%emt 0:01:47]} (24. Bxh6 $2 {perishes.} Kh7 (24... Bxh3 25. Qd2 $17) 25. Be3 Qg3 $19) 24... Bxc3 {[%emt 0:00:12]} 25. Qxc3 {[%emt 0:00:07] Threatens to win with Rf3.} Rbxe4 {[%emt 0:00:09]} 26. Rf3 {[%emt 0:00:01] Hoping for Bf2.} Kh7 $1 {[%emt 0:00:27]} 27. Rd1 {[%emt 0:00:43][%mdl 1024] White has compensation.} Qe7 {[%emt 0:00:36]} 28. Bf2 {[%emt 0:01:35]} Bf5 {[%emt 0:02:15] [#]} ({Black should try} 28... f5 $14) 29. c7 {[%emt 0:00:12]} Re6 $11 {[%emt 0:00:18]} (29... Qxc7 $2 {is the wrong capture.} 30. Qf6 Bc8 31. Rg3 $18 (31. Rxd6 R4e6 $11) (31. Qxd6 Qxd6 32. Rxd6 Rg8 $11)) 30. Rg3 $1 {[%emt 0:00:20] Repels Rg8} Rg6 {[%emt 0:00:45] [#] Against Qg7+} (30... f6 $11) 31. Rd5 {[%emt 0:00:51] Really sharp! White is more active.} ({White should play} 31. Re1 $1 $16 Qd7 32. Rxe8 Qxe8 33. Rxg6 Kxg6 34. Bh4) 31... Be4 {[%emt 0:00:16]} 32. Rxh5 $40 {[%emt 0:00:11][%mdl 128] f5 would now be deadly. Black needs to defend precisely.} Qxc7 $2 {[%emt 0:00:10][%mdl 8192]} (32... f5 $1 $11 {and Black has nothing to worry.}) 33. f5 $18 {[%emt 0:00:07]} Rxg3 {[%emt 0:00:16]} 34. Bxg3 {[%emt 0:00:04]} Re5 {[%emt 0:00:23]} (34... Bxf5 $18 35. Rxf5 Qd7) 35. Qd2 {[%emt 0:00:21] Weighted Error Value: White=0.21 (precise) /Black=0.55.  Loses game:     	---       	Black=1      Mistake:       	White=3     	Black=5      Inaccurate:     	White=2     	---        OK:         	White=9     	Black=6      Best:        	White=4     	Black=2      Strong:       	White=1     	Black=1} 1-0

[Event "Grand Prix Romania 1st Stage 2024"]
[Site "Bucuresti"]
[Date "2024.03.24"]
[Round "8.7"]
[White "Moroni, Luca Jr"]
[Black "Chigaev, Maksim"]
[Result "1/2-1/2"]
[ECO "E43"]
[WhiteElo "2580"]
[BlackElo "2617"]
[Annotator "TA"]
[PlyCount "95"]
[EventDate "2024.03.20"]
[EventType "swiss"]
[EventCountry "ROU"]
[SourceTitle "playchess.com"]
[Source "ChessBase"]
[SourceQuality "1"]
[TimeControl "900+5"]

{[%evp 36,95,-42,-51,-38,-46,-42,-61,0,-52,-39,-34,-28,-26,0,0,0,0,0,0,6,-8,0,-8,0,0,0,-8,-7,-16,-8,-11,-8,-8,-8,-8,8,11,8,8,8,8,8,0,0,0,5,3,8,0,0,0,0,0,0,-12,0,-8,0,0,0,0]} 1. d4 {[%emt 0:00:02]} Nf6 {[%emt 0:00:02]} 2. c4 {[%emt 0:00:01]} e6 {[%emt 0:00:01]} 3. Nc3 {[%emt 0:00:01]} Bb4 {[%emt 0:00:02]} 4. Bd2 {[%emt 0:00:01]} c5 {[%emt 0:02:05]} 5. e3 {[%emt 0:00:20]} O-O {[%emt 0:00:19]} 6. Nf3 {[%emt 0:00:27]} b6 {[%emt 0:00:22]} 7. Bd3 {[%emt 0:00:25]} Bb7 {[%emt 0:00:03]} 8. Qc2 {[%emt 0:00:17] E43: Nimzo-Indian: Rubinstein: 4...b6.} Bxf3 {[%emt 0:01:47]} 9. gxf3 {[%emt 0:00:01]} cxd4 {[%emt 0:00:01]} 10. exd4 {[%emt 0:00:03]} Nc6 {[%emt 0:00:01]} 11. Be3 {[%emt 0:00:02]} Rc8 $146 {[%emt 0:00:10]} ({Predecessor:} 11... d5 12. cxd5 Qxd5 13. O-O-O Bxc3 14. bxc3 Nb4 15. Qb1 Nxd3+ 16. Rxd3 Rfc8 17. Rg1 Qa5 {0-1 Shydlouski,A (1638)-Yahont,I (1800) BLR-ch sf Minsk 2023 (6)}) 12. a3 {[%emt 0:00:43]} Be7 {[%emt 0:02:31]} 13. Rg1 {[%emt 0:00:07]} Kh8 {[%emt 0:00:32]} 14. Rd1 {[%emt 0:03:05]} Na5 {[%emt 0:02:07]} 15. d5 {[%emt 0:00:14]} exd5 {[%emt 0:01:48]} 16. cxd5 {[%emt 0:00:02]} Nxd5 {[%emt 0:01:28]} 17. Bxh7 {[%emt 0:00:49]} Nxe3 {[%emt 0:00:03]} 18. fxe3 {[%emt 0:00:06]} Bc5 {[%emt 0:00:18]} 19. Rg4 {[%emt 0:02:18]} Bxe3 {[%emt 0:00:11]} 20. Bf5 {[%emt 0:00:34]} Bh6 {[%emt 0:00:32]} 21. Bxd7 {[%emt 0:00:52]} Rc4 {[%emt 0:00:17]} (21... Nc4 $15 22. Bxc8 Ne3) 22. Kf1 {[%emt 0:00:34]} ({White should play} 22. Bb5 $11 Qe7+ 23. Qe2 Qxe2+ 24. Kxe2) 22... Rxg4 {[%emt 0:00:35]} 23. Bxg4 {[%emt 0:00:02]} Qc7 {[%emt 0:00:49]} 24. Rd7 {[%emt 0:00:34]} Qe5 {[%emt 0:00:30]} 25. Nd5 {[%emt 0:01:20]} b5 {[%emt 0:00:20]} 26. Qe2 {[%emt 0:00:35]} (26. Rxa7 $2 Nc4 27. b3 Nd2+ (27... Qxd5 28. bxc4 bxc4 29. Rd7 $17) 28. Kg2 Qe2+ (28... Qxd5 $2 29. Rd7 $19) 29. Kh3 Qf1+ 30. Kg3 Qg1+ 31. Kh3 Qxa7 $19) 26... Qxe2+ {[%emt 0:00:10]} 27. Kxe2 {[%emt 0:00:01]} Nc6 {[%emt 0:00:06]} 28. Rc7 {[%emt 0:00:06]} Re8+ {[%emt 0:00:03]} 29. Kf1 {[%emt 0:00:12]} Ne5 {[%emt 0:00:02]} 30. Rxa7 {[%emt 0:00:09]} Rd8 {[%emt 0:00:00]} 31. Nc3 {[%emt 0:00:41]} g6 {[%emt 0:00:11]} 32. Re7 {[%emt 0:01:19]} (32. Nxb5 $2 f5 33. Re7 Rd1+ 34. Ke2 (34. Kg2 $2 Bf4 $19) 34... Rd2+ 35. Kf1 Bf4 (35... Nxg4 36. fxg4 Rxb2 37. Re8+ Kh7 38. Nd4 $11) (35... fxg4 36. Rxe5 gxf3 37. b4 $11) 36. Bxf5 (36. Re8+ $2 Kg7 $19) 36... gxf5 $19) 32... Bf4 {[%emt 0:00:02]} 33. h4 {[%emt 0:00:28]} (33. Nxb5 $2 Rd1+ (33... Bxh2 34. Nc3 $11) 34. Kg2 f5 (34... Rd2+ $2 35. Kf1 $19) 35. Bxf5 (35. Re8+ $2 Kg7 $19) 35... Rd2+ (35... gxf5 $2 36. Nc3 $19) 36. Kf1 gxf5 $19) 33... f5 {[%emt 0:00:05]} 34. Bh3 $1 {[%emt 0:00:08]} Nxf3 {[%emt 0:00:10]} 35. h5 {[%emt 0:00:01]} Ng5 {[%emt 0:00:07]} 36. hxg6 {[%emt 0:00:05]} Nxh3 {[%emt 0:00:03]} 37. Rh7+ {[%emt 0:00:01]} (37. Nxb5 $2 {loses.} Rd1+ 38. Ke2 Rd2+ 39. Ke1 Ng5 $19 (39... Rxb2 40. Nd4 $17)) 37... Kg8 {[%emt 0:00:01]} 38. Rxh3 {[%emt 0:00:02]} Kg7 {[%emt 0:00:03]} 39. Rh7+ {[%emt 0:00:13]} Kxg6 {[%emt 0:00:02]} 40. Rb7 {[%emt 0:00:00]} Rd2 {[%emt 0:00:13]} 41. Rxb5 {[%emt 0:00:02]} (41. Nxb5 Rxb2 42. a4 Ra2) 41... Be3 {[%emt 0:00:00]} 42. Nd5 {[%emt 0:00:01]} Bg5 {[%emt 0:00:14]} 43. a4 {[%emt 0:00:33]} f4 {[%emt 0:00:00]} 44. Nc3 {[%emt 0:00:00]} Bh4 {[%emt 0:00:08]} 45. Ne4 {[%emt 0:00:39]} Rd4 {[%emt 0:00:01]} 46. Re5 {[%emt 0:00:16]} Rxa4 {[%emt 0:00:09]} 47. Ke2 {[%emt 0:00:06]} Bf6 {[%emt 0:00:06]} 48. Nxf6 {[%emt 0:00:11]} 1/2-1/2